[Event "Early-Titled-Tuesday-Blitz-February-06-2024"]
[Site "Chess.com"]
[Date "2024.02.06"]
[Round "3"]
[White "Kaissa10"]
[Black "RichardLeyvaP"]
[Result "1-0"]
[WhiteElo "2311"]
[BlackElo "2532"]
[TimeControl "180+1"]
[EndTime "8:24:55 PST"]
[Termination "Kaissa10 won by resignation"]

1. e4 {[%clk 0:03:00.9]} 1... e5 {[%clk 0:02:59.1]} 2. Nf3 {[%clk 0:03:00.8]}
2... Nc6 {[%clk 0:02:58.3]} 3. Bb5 {[%clk 0:03:00.3]} 3... a6 {[%clk 0:02:53]}
4. Bxc6 {[%clk 0:02:53.6]} 4... dxc6 {[%clk 0:02:52.7]} 5. O-O {[%clk
0:02:53.1]} 5... f6 {[%clk 0:02:52.7]} 6. d4 {[%clk 0:02:51.1]} 6... exd4 {[%clk
0:02:52.9]} 7. Nxd4 {[%clk 0:02:47.3]} 7... c5 {[%clk 0:02:52.9]} 8. Ne2 {[%clk
0:02:47.6]} 8... Qxd1 {[%clk 0:02:52]} 9. Rxd1 {[%clk 0:02:48.5]} 9... Bg4
{[%clk 0:02:52.3]} 10. f3 {[%clk 0:02:36.7]} 10... Bd7 {[%clk 0:02:50.8]} 11.
Nbc3 {[%clk 0:02:24.2]} 11... O-O-O {[%clk 0:02:49.7]} 12. Bf4 {[%clk
0:02:22.4]} 12... Ne7 {[%clk 0:02:48.1]} 13. Nd5 {[%clk 0:02:07.6]} 13... Nxd5
{[%clk 0:02:44.6]} 14. Rxd5 {[%clk 0:02:05.9]} 14... Re8 {[%clk 0:02:40]} 15.
Rad1 {[%clk 0:01:58.3]} 15... Be6 {[%clk 0:02:38.5]} 16. R5d3 {[%clk 0:01:45.8]}
16... Bxa2 {[%clk 0:02:29.3]} 17. b3 {[%clk 0:01:45.8]} 17... c4 {[%clk
0:02:28.6]} 18. Rc3 {[%clk 0:01:45.8]} 18... Bc5+ {[%clk 0:02:16.3]} 19. Kf1
{[%clk 0:01:37.9]} 19... Rd8 {[%clk 0:02:11.7]} 20. Ra1 {[%clk 0:01:37.1]} 20...
Bb6 {[%clk 0:01:43.4]} 21. Rxc4 {[%clk 0:01:26.7]} 21... Rd7 {[%clk 0:01:41.9]}
22. Nc3 {[%clk 0:01:19.5]} 22... Bxb3 {[%clk 0:01:39.1]} 23. cxb3 {[%clk
0:01:19.1]} 23... Rhd8 {[%clk 0:01:39.7]} 24. Nd5 {[%clk 0:01:19.1]} 1-0

[Event "Early-Titled-Tuesday-Blitz-February-06-2024"]
[Site "Chess.com"]
[Date "2024.02.06"]
[Round "3"]
[White "viniciusrego"]
[Black "Timerkhanov"]
[Result "1-0"]
[WhiteElo "2453"]
[BlackElo "2635"]
[TimeControl "180+1"]
[EndTime "8:25:16 PST"]
[Termination "viniciusrego won by resignation"]

1. e4 {[%clk 0:03:00.9]} 1... c5 {[%clk 0:02:58.2]} 2. Nf3 {[%clk 0:03:01]} 2...
a6 {[%clk 0:02:58.8]} 3. c4 {[%clk 0:03:00]} 3... Nc6 {[%clk 0:02:58.1]} 4. d4
{[%clk 0:03:00.4]} 4... cxd4 {[%clk 0:02:59]} 5. Nxd4 {[%clk 0:03:01]} 5... Nf6
{[%clk 0:02:59.6]} 6. Nc3 {[%clk 0:03:01.1]} 6... e5 {[%clk 0:03:00.1]} 7. Nc2
{[%clk 0:02:56.8]} 7... Bc5 {[%clk 0:02:59.4]} 8. Be2 {[%clk 0:02:56.5]} 8... d6
{[%clk 0:02:59.5]} 9. O-O {[%clk 0:02:56.8]} 9... h6 {[%clk 0:02:59.6]} 10. Be3
{[%clk 0:02:51.7]} 10... O-O {[%clk 0:02:51.7]} 11. Rb1 {[%clk 0:02:48]} 11...
Bxe3 {[%clk 0:02:50.5]} 12. fxe3 {[%clk 0:02:48.9]} 12... Be6 {[%clk 0:02:35]}
13. Nd5 {[%clk 0:02:48.5]} 13... Nd7 {[%clk 0:02:30.7]} 14. Bg4 {[%clk
0:02:44.3]} 14... Nc5 {[%clk 0:02:25.6]} 15. Qf3 {[%clk 0:02:32.6]} 15... Qg5
{[%clk 0:02:18.8]} 16. Bf5 {[%clk 0:02:24.3]} 16... g6 {[%clk 0:02:14.5]} 17. b4
{[%clk 0:02:13.3]} 17... Na4 {[%clk 0:01:21.7]} 18. Bh3 {[%clk 0:02:06.7]} 18...
Bxh3 {[%clk 0:01:21.9]} 19. Qxh3 {[%clk 0:02:07.6]} 19... b5 {[%clk 0:01:20]}
20. Qd7 {[%clk 0:01:57.6]} 20... Rac8 {[%clk 0:01:12.1]} 21. Rf6 {[%clk
0:01:42.2]} 21... Rfd8 {[%clk 0:01:05.2]} 22. Qxf7+ {[%clk 0:01:40.2]} 22... Kh8
{[%clk 0:01:02.3]} 23. Rxg6 {[%clk 0:01:40.4]} 1-0

[Event "Early-Titled-Tuesday-Blitz-February-06-2024"]
[Site "Chess.com"]
[Date "2024.02.06"]
[Round "3"]
[White "Arystanner"]
[Black "Qingdom"]
[Result "1-0"]
[WhiteElo "2878"]
[BlackElo "2067"]
[TimeControl "180+1"]
[EndTime "8:25:22 PST"]
[Termination "Arystanner won by resignation"]

1. d4 {[%clk 0:02:54.8]} 1... Nf6 {[%clk 0:02:59.1]} 2. Nf3 {[%clk 0:02:55.5]}
2... c5 {[%clk 0:02:58.7]} 3. e3 {[%clk 0:02:54.6]} 3... d5 {[%clk 0:02:58]} 4.
b3 {[%clk 0:02:51.3]} 4... Nc6 {[%clk 0:02:57.4]} 5. Bd3 {[%clk 0:02:49.9]} 5...
Bg4 {[%clk 0:02:57.2]} 6. Bb2 {[%clk 0:02:48.8]} 6... e6 {[%clk 0:02:56.8]} 7.
O-O {[%clk 0:02:48.9]} 7... Be7 {[%clk 0:02:54.6]} 8. dxc5 {[%clk 0:02:48.4]}
8... Bxc5 {[%clk 0:02:54.3]} 9. a3 {[%clk 0:02:47.2]} 9... O-O {[%clk
0:02:53.2]} 10. h3 {[%clk 0:02:47.7]} 10... Bh5 {[%clk 0:02:52.6]} 11. Nbd2
{[%clk 0:02:46.4]} 11... Qe7 {[%clk 0:02:50]} 12. b4 {[%clk 0:02:46.7]} 12...
Bd6 {[%clk 0:02:49.7]} 13. c4 {[%clk 0:02:47.1]} 13... Rac8 {[%clk 0:02:42.5]}
14. cxd5 {[%clk 0:02:43.1]} 14... exd5 {[%clk 0:02:34.8]} 15. Qb3 {[%clk
0:02:41.8]} 15... Rfd8 {[%clk 0:02:31.6]} 16. Nd4 {[%clk 0:02:42.2]} 16... Nxd4
{[%clk 0:02:21.5]} 17. Bxd4 {[%clk 0:02:41.1]} 17... Ne4 {[%clk 0:02:19.2]} 18.
Bxe4 {[%clk 0:02:28.4]} 18... dxe4 {[%clk 0:02:19]} 19. Rfc1 {[%clk 0:02:28.3]}
19... Kf8 {[%clk 0:02:07.7]} 20. Bxa7 {[%clk 0:02:21.1]} 20... f5 {[%clk
0:02:05.1]} 21. Bd4 {[%clk 0:02:19.7]} 21... Bf7 {[%clk 0:01:57.1]} 22. Qb2
{[%clk 0:02:19.4]} 22... Qg5 {[%clk 0:01:55.8]} 23. Rxc8 {[%clk 0:02:19.1]}
23... Rxc8 {[%clk 0:01:55.4]} 24. Rc1 {[%clk 0:02:19.5]} 24... Rxc1+ {[%clk
0:01:49.9]} 25. Qxc1 {[%clk 0:02:19.5]} 25... Be6 {[%clk 0:01:46.7]} 26. Bc5
{[%clk 0:02:18.3]} 26... Ke7 {[%clk 0:01:41.2]} 27. Bxd6+ {[%clk 0:02:18.3]}
27... Kxd6 {[%clk 0:01:41.6]} 28. Qc5+ {[%clk 0:02:19.1]} 28... Kd7 {[%clk
0:01:42]} 29. Nxe4 {[%clk 0:02:19.2]} 29... Qe7 {[%clk 0:01:36.2]} 30. Qxe7+
{[%clk 0:02:18.9]} 30... Kxe7 {[%clk 0:01:36.5]} 31. Nc5 {[%clk 0:02:19.8]}
31... Bc8 {[%clk 0:01:36.7]} 32. f3 {[%clk 0:02:17.5]} 32... b6 {[%clk
0:01:36.3]} 33. Nb3 {[%clk 0:02:18]} 33... Kd6 {[%clk 0:01:36.6]} 34. Nd4 {[%clk
0:02:18.4]} 34... Kd5 {[%clk 0:01:33.1]} 35. Kf2 {[%clk 0:02:17.6]} 35... Kc4
{[%clk 0:01:33]} 36. g4 {[%clk 0:02:17.9]} 36... fxg4 {[%clk 0:01:32.5]} 37.
hxg4 {[%clk 0:02:18.6]} 37... Kc3 {[%clk 0:01:27.6]} 38. g5 {[%clk 0:02:16.9]}
38... Kb2 {[%clk 0:01:27.2]} 39. a4 {[%clk 0:02:17.1]} 39... Kc3 {[%clk
0:01:25.9]} 40. a5 {[%clk 0:02:17.1]} 40... bxa5 {[%clk 0:01:26.4]} 41. bxa5
{[%clk 0:02:18]} 41... Kb4 {[%clk 0:01:25.7]} 42. a6 {[%clk 0:02:13.5]} 42...
Bxa6 {[%clk 0:01:24.2]} 43. Ne6 {[%clk 0:02:14.2]} 43... h6 {[%clk 0:01:20.5]}
44. g6 {[%clk 0:02:06.9]} 44... Bd3 {[%clk 0:01:18.1]} 45. e4 {[%clk 0:02:07]}
45... Kc4 {[%clk 0:01:13]} 46. Nxg7 {[%clk 0:02:07.3]} 46... Kd4 {[%clk
0:01:13.3]} 47. Ne6+ {[%clk 0:02:04.8]} 47... Ke5 {[%clk 0:01:13.2]} 48. g7
{[%clk 0:02:05.7]} 1-0

[Event "Early-Titled-Tuesday-Blitz-February-06-2024"]
[Site "Chess.com"]
[Date "2024.02.06"]
[Round "3"]
[White "Thunderbolt135"]
[Black "Genghis_K"]
[Result "0-1"]
[WhiteElo "2690"]
[BlackElo "2908"]
[TimeControl "180+1"]
[EndTime "8:25:26 PST"]
[Termination "Genghis_K won by resignation"]

1. b3 {[%clk 0:03:00.9]} 1... e5 {[%clk 0:02:29.2]} 2. Bb2 {[%clk 0:03:01.3]}
2... Nc6 {[%clk 0:02:29.3]} 3. e3 {[%clk 0:03:02]} 3... Nf6 {[%clk 0:02:27.7]}
4. Bb5 {[%clk 0:02:55.2]} 4... e4 {[%clk 0:02:28.1]} 5. Ne2 {[%clk 0:02:52.5]}
5... a6 {[%clk 0:02:21.9]} 6. Bxc6 {[%clk 0:02:52.1]} 6... dxc6 {[%clk
0:02:22.5]} 7. Ng3 {[%clk 0:02:51.2]} 7... h5 {[%clk 0:02:21.7]} 8. Bxf6 {[%clk
0:02:37.7]} 8... Qxf6 {[%clk 0:02:19.9]} 9. Nc3 {[%clk 0:02:38.3]} 9... Qg6
{[%clk 0:02:20.3]} 10. h4 {[%clk 0:02:29.4]} 10... Bg4 {[%clk 0:01:55.5]} 11. f3
{[%clk 0:02:20.6]} 11... Bxf3 {[%clk 0:01:54.4]} 12. gxf3 {[%clk 0:02:21.5]}
12... Qxg3+ {[%clk 0:01:54.5]} 13. Kf1 {[%clk 0:02:16.6]} 13... exf3 {[%clk
0:01:54.5]} 14. Rg1 {[%clk 0:02:14.6]} 14... Qh3+ {[%clk 0:01:54.8]} 15. Kf2
{[%clk 0:02:13.8]} 15... O-O-O {[%clk 0:01:46.3]} 16. d4 {[%clk 0:01:59.6]}
16... Qxh4+ {[%clk 0:01:31.7]} 17. Kxf3 {[%clk 0:01:59.5]} 17... Rh6 {[%clk
0:01:31.9]} 18. Ke2 {[%clk 0:01:45.2]} 18... Bb4 {[%clk 0:01:23.8]} 19. Kd3
{[%clk 0:01:36.2]} 19... c5 {[%clk 0:01:10.1]} 20. d5 {[%clk 0:01:36.6]} 20...
Qf6 {[%clk 0:01:05.8]} 21. Ne4 {[%clk 0:01:22.8]} 21... Rxd5+ {[%clk 0:01:01.4]}
22. Ke2 {[%clk 0:01:23.2]} 22... Rxd1 {[%clk 0:00:58]} 0-1

[Event "Early-Titled-Tuesday-Blitz-February-06-2024"]
[Site "Chess.com"]
[Date "2024.02.06"]
[Round "3"]
[White "dropstoneDP"]
[Black "Franmu14"]
[Result "1/2-1/2"]
[WhiteElo "3013"]
[BlackElo "2746"]
[TimeControl "180+1"]
[EndTime "8:25:27 PST"]
[Termination "Game drawn by repetition"]

1. e4 {[%clk 0:03:00.9]} 1... e5 {[%clk 0:02:59.9]} 2. Nf3 {[%clk 0:02:58.6]}
2... Nc6 {[%clk 0:03:00.3]} 3. Bc4 {[%clk 0:02:58.5]} 3... Bc5 {[%clk
0:03:00.1]} 4. d3 {[%clk 0:02:57.9]} 4... Nf6 {[%clk 0:03:00.6]} 5. Nc3 {[%clk
0:02:57.1]} 5... h6 {[%clk 0:02:57.7]} 6. O-O {[%clk 0:02:53.5]} 6... a5 {[%clk
0:02:57.4]} 7. Be3 {[%clk 0:02:52.6]} 7... Bxe3 {[%clk 0:02:53.3]} 8. fxe3
{[%clk 0:02:53.5]} 8... d6 {[%clk 0:02:53.6]} 9. Qe1 {[%clk 0:02:51]} 9... Be6
{[%clk 0:02:52]} 10. Bxe6 {[%clk 0:02:48.2]} 10... fxe6 {[%clk 0:02:51.9]} 11.
a3 {[%clk 0:02:30.4]} 11... Qd7 {[%clk 0:02:43.8]} 12. Rd1 {[%clk 0:02:29.5]}
12... O-O {[%clk 0:02:39.8]} 13. h3 {[%clk 0:02:28.5]} 13... Ne7 {[%clk
0:02:28.5]} 14. d4 {[%clk 0:02:27.6]} 14... exd4 {[%clk 0:02:26.6]} 15. exd4
{[%clk 0:02:28.5]} 15... Nh7 {[%clk 0:02:26.1]} 16. Qg3 {[%clk 0:02:27.3]} 16...
Kh8 {[%clk 0:02:22.7]} 17. Ne2 {[%clk 0:02:22.6]} 17... Qc6 {[%clk 0:02:19.1]}
18. Qg4 {[%clk 0:01:58]} 18... Nf6 {[%clk 0:02:11.1]} 19. Qxe6 {[%clk
0:01:57.7]} 19... Qxe4 {[%clk 0:02:11.4]} 20. Qxe4 {[%clk 0:01:56.6]} 20... Nxe4
{[%clk 0:02:12.3]} 21. Rfe1 {[%clk 0:01:49.2]} 21... Nd5 {[%clk 0:01:53.9]} 22.
Nc1 {[%clk 0:01:47.4]} 22... Nef6 {[%clk 0:01:51.3]} 23. Nd3 {[%clk 0:01:45.8]}
23... Rfe8 {[%clk 0:01:45.1]} 24. Rxe8+ {[%clk 0:01:46]} 24... Rxe8 {[%clk
0:01:44.5]} 25. Re1 {[%clk 0:01:46.4]} 25... Rxe1+ {[%clk 0:01:43.8]} 26. Nfxe1
{[%clk 0:01:47.3]} 26... a4 {[%clk 0:01:41.7]} 27. Kf2 {[%clk 0:01:45.9]} 27...
Kg8 {[%clk 0:01:40.1]} 28. Kf3 {[%clk 0:01:45.5]} 28... Kf7 {[%clk 0:01:39.6]}
29. g3 {[%clk 0:01:35.9]} 29... g5 {[%clk 0:01:37.1]} 30. Ng2 {[%clk 0:01:36.2]}
30... Ke6 {[%clk 0:01:34.9]} 31. g4 {[%clk 0:01:35]} 31... b5 {[%clk 0:01:30.6]}
32. Ne3 {[%clk 0:01:25.5]} 32... Nxe3 {[%clk 0:01:29.7]} 33. Kxe3 {[%clk
0:01:26.4]} 33... Nd5+ {[%clk 0:01:30]} 34. Ke4 {[%clk 0:01:27]} 34... Nf6+
{[%clk 0:01:15.4]} 35. Ke3 {[%clk 0:01:27.3]} 35... Nd5+ {[%clk 0:01:14.8]} 36.
Ke4 {[%clk 0:01:27.4]} 36... Nf6+ {[%clk 0:01:15.1]} 37. Ke3 {[%clk 0:01:28.1]}
1/2-1/2

[Event "Early-Titled-Tuesday-Blitz-February-06-2024"]
[Site "Chess.com"]
[Date "2024.02.06"]
[Round "3"]
[White "MikeSailer"]
[Black "wild3000"]
[Result "0-1"]
[WhiteElo "2052"]
[BlackElo "2366"]
[TimeControl "180+1"]
[EndTime "8:25:28 PST"]
[Termination "wild3000 won by resignation"]

1. d4 {[%clk 0:02:57.7]} 1... d5 {[%clk 0:03:00.1]} 2. Bf4 {[%clk 0:02:56.2]}
2... Nf6 {[%clk 0:02:59.7]} 3. e3 {[%clk 0:02:55.8]} 3... e6 {[%clk 0:03:00]} 4.
Nf3 {[%clk 0:02:53.4]} 4... Be7 {[%clk 0:03:00.9]} 5. c4 {[%clk 0:02:52.9]} 5...
O-O {[%clk 0:03:01.2]} 6. Be2 {[%clk 0:02:36.9]} 6... a6 {[%clk 0:02:58.9]} 7.
O-O {[%clk 0:02:36.5]} 7... dxc4 {[%clk 0:02:59.2]} 8. Bxc4 {[%clk 0:02:35.9]}
8... b5 {[%clk 0:02:59.8]} 9. Bd3 {[%clk 0:02:35.4]} 9... Bb7 {[%clk 0:03:00.4]}
10. Nbd2 {[%clk 0:02:35.1]} 10... c5 {[%clk 0:02:58.5]} 11. Qe2 {[%clk
0:02:28.4]} 11... Nc6 {[%clk 0:02:55.1]} 12. a3 {[%clk 0:02:27.8]} 12... Nd5
{[%clk 0:02:49.2]} 13. Bg3 {[%clk 0:02:26.6]} 13... c4 {[%clk 0:02:43.6]} 14.
Bc2 {[%clk 0:02:24.1]} 14... Rc8 {[%clk 0:02:35.1]} 15. e4 {[%clk 0:02:10.5]}
15... Nf6 {[%clk 0:02:26.9]} 16. Rfe1 {[%clk 0:02:08.3]} 16... Nh5 {[%clk
0:02:23.6]} 17. Be5 {[%clk 0:02:03.2]} 17... f6 {[%clk 0:02:18.5]} 18. Bg3
{[%clk 0:02:02.3]} 18... Nxg3 {[%clk 0:02:16.5]} 19. hxg3 {[%clk 0:02:02.3]}
19... Nxd4 {[%clk 0:02:16.8]} 20. Nxd4 {[%clk 0:02:00.7]} 20... Qxd4 {[%clk
0:02:17.7]} 21. b3 {[%clk 0:01:44.4]} 21... Rfd8 {[%clk 0:02:11]} 22. Nf3 {[%clk
0:01:41.1]} 22... Qc3 {[%clk 0:02:08.1]} 23. b4 {[%clk 0:01:23.3]} 23... a5
{[%clk 0:01:50.2]} 24. e5 {[%clk 0:01:17.1]} 24... f5 {[%clk 0:01:49.3]} 25.
bxa5 {[%clk 0:01:13.6]} 25... Qxa5 {[%clk 0:01:43]} 26. g4 {[%clk 0:00:55.4]}
26... fxg4 {[%clk 0:01:39.1]} 27. Nh2 {[%clk 0:00:52.5]} 27... Rd2 {[%clk
0:01:37.6]} 0-1

[Event "Early-Titled-Tuesday-Blitz-February-06-2024"]
[Site "Chess.com"]
[Date "2024.02.06"]
[Round "3"]
[White "JaackCamel"]
[Black "NastyaHn"]
[Result "1-0"]
[WhiteElo "2163"]
[BlackElo "2375"]
[TimeControl "180+1"]
[EndTime "8:25:29 PST"]
[Termination "JaackCamel won by resignation"]

1. d4 {[%clk 0:02:54.6]} 1... e6 {[%clk 0:02:59.8]} 2. c4 {[%clk 0:02:53]} 2...
d5 {[%clk 0:02:59.7]} 3. Nc3 {[%clk 0:02:51.4]} 3... Nf6 {[%clk 0:02:59.4]} 4.
cxd5 {[%clk 0:02:48.7]} 4... exd5 {[%clk 0:02:59.3]} 5. Bg5 {[%clk 0:02:47.8]}
5... Be7 {[%clk 0:02:58.8]} 6. e3 {[%clk 0:02:47.2]} 6... O-O {[%clk 0:02:58.6]}
7. Bd3 {[%clk 0:02:45.6]} 7... c6 {[%clk 0:02:58.9]} 8. Qc2 {[%clk 0:02:43.7]}
8... h6 {[%clk 0:02:59.3]} 9. Bh4 {[%clk 0:02:43.2]} 9... Re8 {[%clk 0:02:59.7]}
10. Nge2 {[%clk 0:02:42.8]} 10... Nbd7 {[%clk 0:02:59.5]} 11. O-O {[%clk
0:02:41.5]} 11... Nf8 {[%clk 0:02:59.8]} 12. h3 {[%clk 0:02:37.7]} 12... Nh5
{[%clk 0:02:56.5]} 13. Bxe7 {[%clk 0:02:35.7]} 13... Qxe7 {[%clk 0:02:57]} 14.
Rab1 {[%clk 0:02:31.3]} 14... a5 {[%clk 0:02:56.2]} 15. a3 {[%clk 0:02:28.6]}
15... Qg5 {[%clk 0:02:54.4]} 16. Kh2 {[%clk 0:02:19.7]} 16... Be6 {[%clk
0:02:36.7]} 17. Rbd1 {[%clk 0:02:16]} 17... Qh4 {[%clk 0:02:30.8]} 18. Ng1
{[%clk 0:02:03.7]} 18... Qd8 {[%clk 0:02:01.9]} 19. Na4 {[%clk 0:01:58.7]} 19...
Qd6+ {[%clk 0:02:00.5]} 20. Kh1 {[%clk 0:01:57.6]} 20... Nd7 {[%clk 0:01:50.1]}
21. Rc1 {[%clk 0:01:54.7]} 21... Rec8 {[%clk 0:01:41.7]} 22. Nc5 {[%clk
0:01:54]} 22... Nxc5 {[%clk 0:01:41.5]} 23. Qxc5 {[%clk 0:01:54]} 23... Qd7
{[%clk 0:01:38.7]} 24. Qc2 {[%clk 0:01:45.3]} 24... b6 {[%clk 0:01:36]} 25. Qe2
{[%clk 0:01:44.8]} 25... c5 {[%clk 0:01:35.1]} 26. Qxh5 {[%clk 0:01:44.1]} 26...
c4 {[%clk 0:01:30.9]} 27. Bc2 {[%clk 0:01:42.7]} 27... b5 {[%clk 0:01:30.9]} 28.
Nf3 {[%clk 0:01:41.5]} 28... b4 {[%clk 0:01:31.1]} 29. Ne5 {[%clk 0:01:41.4]}
29... Qe7 {[%clk 0:01:30.5]} 30. Ba4 {[%clk 0:01:37.9]} 30... bxa3 {[%clk
0:01:26.9]} 31. bxa3 {[%clk 0:01:37.5]} 31... Qxa3 {[%clk 0:01:22.9]} 32. Bd7
{[%clk 0:01:36.4]} 32... Rf8 {[%clk 0:01:22.9]} 33. Bxe6 {[%clk 0:01:35.3]}
33... fxe6 {[%clk 0:01:23.2]} 34. Qg6 {[%clk 0:01:33.7]} 34... Rf6 {[%clk
0:01:23.3]} 35. Qg3 {[%clk 0:01:31.3]} 35... Qd6 {[%clk 0:01:20.3]} 36. Ng4
{[%clk 0:01:30.1]} 36... Qxg3 {[%clk 0:01:17.4]} 37. Nxf6+ {[%clk 0:01:30]} 1-0

[Event "Early-Titled-Tuesday-Blitz-February-06-2024"]
[Site "Chess.com"]
[Date "2024.02.06"]
[Round "3"]
[White "Meri-Arabidze"]
[Black "wonderfultime"]
[Result "0-1"]
[WhiteElo "2743"]
[BlackElo "3042"]
[TimeControl "180+1"]
[EndTime "8:25:30 PST"]
[Termination "wonderfultime won by resignation"]

1. d4 {[%clk 0:03:00.9]} 1... d5 {[%clk 0:02:54.1]} 2. c4 {[%clk 0:03:00.9]}
2... c6 {[%clk 0:02:53.6]} 3. Nf3 {[%clk 0:03:00.7]} 3... Nf6 {[%clk 0:02:53.6]}
4. Nbd2 {[%clk 0:03:00.5]} 4... a6 {[%clk 0:02:49.1]} 5. e3 {[%clk 0:02:58.2]}
5... Bf5 {[%clk 0:02:49.3]} 6. b3 {[%clk 0:02:57.3]} 6... e6 {[%clk 0:02:49.4]}
7. Bb2 {[%clk 0:02:57.5]} 7... Nbd7 {[%clk 0:02:49.9]} 8. Be2 {[%clk 0:02:56.1]}
8... Bd6 {[%clk 0:02:50.2]} 9. Nh4 {[%clk 0:02:54.2]} 9... Be4 {[%clk
0:02:50.4]} 10. f3 {[%clk 0:02:51.7]} 10... Ng4 {[%clk 0:02:34]} 11. Nxe4 {[%clk
0:02:24.5]} 11... dxe4 {[%clk 0:02:29.6]} 12. fxg4 {[%clk 0:02:23.5]} 12...
Qxh4+ {[%clk 0:02:28.5]} 13. Kd2 {[%clk 0:02:24.1]} 13... O-O-O {[%clk
0:02:17.2]} 14. Kc2 {[%clk 0:02:20.9]} 14... Qf2 {[%clk 0:02:00.1]} 15. Rf1
{[%clk 0:01:54.5]} 15... Qxg2 {[%clk 0:01:58.8]} 16. Rxf7 {[%clk 0:01:53.6]}
16... Rhf8 {[%clk 0:01:54.5]} 17. Rxf8 {[%clk 0:00:54.6]} 17... Rxf8 {[%clk
0:01:55.4]} 18. Qd2 {[%clk 0:00:55.1]} 18... Rf2 {[%clk 0:01:39.7]} 19. Re1
{[%clk 0:00:54.8]} 19... Qxh2 {[%clk 0:01:40.3]} 20. Bc3 {[%clk 0:00:45.7]}
20... Rg2 {[%clk 0:01:34]} 21. a4 {[%clk 0:00:38.1]} 21... Bg3 {[%clk
0:01:33.3]} 0-1

[Event "Early-Titled-Tuesday-Blitz-February-06-2024"]
[Site "Chess.com"]
[Date "2024.02.06"]
[Round "3"]
[White "Atousa"]
[Black "only_strong_moves"]
[Result "0-1"]
[WhiteElo "2457"]
[BlackElo "2676"]
[TimeControl "180+1"]
[EndTime "8:25:32 PST"]
[Termination "only_strong_moves won by resignation"]

1. e4 {[%clk 0:02:51]} 1... e5 {[%clk 0:03:00.2]} 2. Nf3 {[%clk 0:02:51]} 2...
Nc6 {[%clk 0:03:00.8]} 3. Bb5 {[%clk 0:02:50.9]} 3... a6 {[%clk 0:03:01.3]} 4.
Ba4 {[%clk 0:02:51.4]} 4... Nge7 {[%clk 0:03:01.8]} 5. O-O {[%clk 0:02:49.4]}
5... Ng6 {[%clk 0:03:02.1]} 6. d4 {[%clk 0:02:49.2]} 6... exd4 {[%clk
0:03:00.7]} 7. Nxd4 {[%clk 0:02:46.5]} 7... Nxd4 {[%clk 0:03:01.6]} 8. Qxd4
{[%clk 0:02:46.4]} 8... b5 {[%clk 0:03:02.5]} 9. Bb3 {[%clk 0:02:38.4]} 9... Bb7
{[%clk 0:03:03.4]} 10. a4 {[%clk 0:02:30.3]} 10... c5 {[%clk 0:03:03.2]} 11. Qe3
{[%clk 0:02:26.3]} 11... c4 {[%clk 0:03:03]} 12. Ba2 {[%clk 0:02:26.3]} 12...
Rc8 {[%clk 0:02:47]} 13. Nc3 {[%clk 0:02:23.8]} 13... Bc5 {[%clk 0:02:47.1]} 14.
Qe2 {[%clk 0:02:23.8]} 14... Qb6 {[%clk 0:02:33.7]} 15. axb5 {[%clk 0:02:21.3]}
15... axb5 {[%clk 0:02:34.6]} 16. Nd5 {[%clk 0:02:13.2]} 16... Qe6 {[%clk
0:02:34.6]} 17. Be3 {[%clk 0:01:55.8]} 17... Qxe4 {[%clk 0:02:24.2]} 18. Rfe1
{[%clk 0:01:34.7]} 18... O-O {[%clk 0:02:10.5]} 19. Bxc5 {[%clk 0:00:48.8]}
19... Qxd5 {[%clk 0:02:09.7]} 20. Qg4 {[%clk 0:00:38.2]} 20... Rxc5 {[%clk
0:02:07.2]} 21. Rad1 {[%clk 0:00:36]} 21... Qc6 {[%clk 0:02:06.8]} 22. c3 {[%clk
0:00:33.8]} 22... h5 {[%clk 0:02:06]} 23. Qg3 {[%clk 0:00:30.3]} 23... Qf6
{[%clk 0:02:02.1]} 24. f3 {[%clk 0:00:24.7]} 24... Rg5 {[%clk 0:02:01.5]} 25.
Qf2 {[%clk 0:00:16.5]} 25... Bxf3 {[%clk 0:02:01.5]} 26. g3 {[%clk 0:00:17.1]}
26... Bxd1 {[%clk 0:02:01]} 0-1

[Event "Early-Titled-Tuesday-Blitz-February-06-2024"]
[Site "Chess.com"]
[Date "2024.02.06"]
[Round "3"]
[White "tetrix83"]
[Black "NowInChess"]
[Result "1-0"]
[WhiteElo "2557"]
[BlackElo "2328"]
[TimeControl "180+1"]
[EndTime "8:25:35 PST"]
[Termination "tetrix83 won by resignation"]

1. e4 {[%clk 0:03:00.9]} 1... e6 {[%clk 0:02:59.9]} 2. d4 {[%clk 0:03:00.1]}
2... d5 {[%clk 0:03:00.5]} 3. Nc3 {[%clk 0:03:00.4]} 3... Nc6 {[%clk 0:03:00.4]}
4. Nf3 {[%clk 0:02:58.2]} 4... Nf6 {[%clk 0:03:00.2]} 5. exd5 {[%clk 0:02:51.5]}
5... exd5 {[%clk 0:02:59.9]} 6. Bb5 {[%clk 0:02:50.4]} 6... Bb4 {[%clk
0:02:59.8]} 7. O-O {[%clk 0:02:48.6]} 7... O-O {[%clk 0:02:59.5]} 8. Ne2 {[%clk
0:02:47.7]} 8... Bg4 {[%clk 0:02:52.5]} 9. Bxc6 {[%clk 0:02:38.6]} 9... Bxf3
{[%clk 0:02:47.4]} 10. Bxb7 {[%clk 0:02:33.4]} 10... Bxg2 {[%clk 0:02:23.3]} 11.
Kxg2 {[%clk 0:02:22.3]} 11... Rb8 {[%clk 0:02:22.8]} 12. Ba6 {[%clk 0:02:20.7]}
12... Qd6 {[%clk 0:02:21.1]} 13. Bd3 {[%clk 0:02:17.6]} 13... Ng4 {[%clk
0:02:12.7]} 14. Bf4 {[%clk 0:02:14.1]} 14... Qf6 {[%clk 0:02:05.6]} 15. Bg3
{[%clk 0:02:09.5]} 15... Bd6 {[%clk 0:01:54.8]} 16. b3 {[%clk 0:02:01.6]} 16...
Bxg3 {[%clk 0:01:52.2]} 17. hxg3 {[%clk 0:02:01.1]} 17... Rb6 {[%clk 0:01:38.2]}
18. c3 {[%clk 0:02:00]} 18... Re8 {[%clk 0:01:27]} 19. Nf4 {[%clk 0:01:59]}
19... Nh6 {[%clk 0:01:06]} 20. Nxd5 {[%clk 0:01:56]} 20... Qg5 {[%clk
0:00:59.5]} 21. Nxb6 {[%clk 0:01:53.4]} 21... axb6 {[%clk 0:00:54.2]} 22. Re1
{[%clk 0:01:53.4]} 22... Re6 {[%clk 0:00:53.1]} 23. Qf3 {[%clk 0:01:50.1]} 23...
g6 {[%clk 0:00:31.1]} 24. Rxe6 {[%clk 0:01:48.1]} 24... fxe6 {[%clk 0:00:32]}
25. Re1 {[%clk 0:01:47.6]} 25... Nf5 {[%clk 0:00:31.8]} 26. Bxf5 {[%clk
0:01:45.2]} 1-0